[Event "80th ARM-ch 1st League 2019"]
[Site "Yerevan"]
[Date "2019.08.24"]
[Round "7.4"]
[White "Sargsyan, Shant"]
[Black "Shahinyan, David"]
[Result "1-0"]
[ECO "A35"]
[WhiteElo "2540"]
[BlackElo "2452"]
[Annotator "ChessBase"]
[PlyCount "157"]
[EventDate "2019.08.18"]
[EventType "tourn"]
[EventCountry "ARM"]
[SourceTitle "playchess.com"]
[Source "ChessBase"]
[SourceQuality "1"]
[TimeControl "40/5400+30:1800+30"]

1. Nf3 {[%emt 0:01:58]} Nf6 {[%emt 0:01:38]} 2. c4 {[%emt 0:00:58]} c5 3. Nc3 {[%emt 0:01:22]} Nc6 {[%emt 0:04:41]} 4. d4 {[%emt 0:01:24]} cxd4 {[%emt 0:00:28]} 5. Nxd4 {[%emt 0:00:02]} g6 {[%emt 0:00:07]} 6. e4 {[%emt 0:01:19]} Nxd4 {[%emt 0:00:05]} 7. Qxd4 {[%emt 0:00:12]} Bg7 {[%emt 0:00:31]} 8. e5 {[%emt 0:04:51]} Ng8 {[%emt 0:01:55]} 9. Bf4 {[%emt 0:02:02]} Nh6 {[%emt 0:06:11]} 10. O-O-O {[%emt 0:11:16]} O-O {[%emt 0:02:00]} 11. h3 {[%emt 0:06:34]} f6 {[%emt 0:10:09]} 12. Qd2 {[%emt 0:04:40]} Nf7 {[%emt 0:00:54]} 13. exf6 {[%emt 0:00:12]} Bxf6 {[%emt 0:00:03]} 14. Nd5 {[%emt 0:02:19]} e5 {[%emt 0:00:19]} 15. Be3 {[%emt 0:01:42]} d6 {[%emt 0:00:30]} 16. Kb1 {[%emt 0:03:08]} Bg5 {[%emt 0:08:33]} 17. g4 {[%emt 0:05:45]} Be6 {[%emt 0:03:28]} 18. Bg2 {[%emt 0:01:11]} Rc8 {[%emt 0:06:06]} 19. b3 {[%emt 0:01:52]} b6 {[%emt 0:14:28]} 20. Bxg5 {[%emt 0:08:50]} Nxg5 {[%emt 0:00:32]} 21. f4 {[%emt 0:00:16]} Nf7 {[%emt 0:11:20]} 22. Rhf1 {[%emt 0:00:30]} Kh8 {[%emt 0:04:53]} 23. Qb2 {[%emt 0:02:21]} Qh4 {[%emt 0:04:34]} 24. Rde1 {[%emt 0:03:49]} Bxd5 {[%emt 0:03:38]} 25. Bxd5 {[%emt 0:01:12]} Qxh3 {[%emt 0:01:26]} 26. fxe5 {[%emt 0:22:08]} Qd3+ {[%emt 0:00:10]} 27. Ka1 {[%emt 0:00:22]} Nxe5 {[%emt 0:00:28]} 28. Rg1 {[%emt 0:00:53]} Rc7 {[%emt 0:08:04]} 29. Be4 {[%emt 0:00:16]} Qh3 {[%emt 0:00:05]} 30. Bxg6 {[%emt 0:00:33]} Rg7 {[%emt 0:01:20]} 31. Bf5 {[%emt 0:00:16]} Qh6 {[%emt 0:01:45]} 32. Rh1 {[%emt 0:01:11]} Qf6 {[%emt 0:00:46]} 33. Re4 {[%emt 0:00:47]} a5 {[%emt 0:01:36]} 34. Qd4 {[%emt 0:01:16]} a4 {[%emt 0:00:30]} 35. bxa4 {[%emt 0:01:10]} Rc7 {[%emt 0:01:50]} 36. Kb1 {[%emt 0:01:08]} h6 {[%emt 0:00:48]} 37. Qd5 {[%emt 0:04:04]} Kg7 {[%emt 0:01:44]} 38. Rd1 {[%emt 0:01:03]} Rff7 {[%emt 0:00:52]} 39. Qxd6 {[%emt 0:02:45]} Nxc4 {[%emt 0:00:15]} 40. Qb4 {[%emt 0:00:00]} Qc6 {[%emt 0:00:00]} 41. Rde1 {[%emt 0:25:07]} Qc5 {[%emt 0:16:57]} 42. Qc3+ {[%emt 0:00:35]} Rf6 {[%emt 0:02:16]} 43. Rxc4 {[%emt 0:00:32]} Qxc4 {[%emt 0:00:37]} 44. Re7+ {[%emt 0:00:05]} Rxe7 {[%emt 0:00:01]} 45. Qxc4 {[%emt 0:00:04]} h5 {[%emt 0:00:06]} 46. Bc2 {[%emt 0:01:58]} hxg4 {[%emt 0:01:07]} 47. Qxg4+ {[%emt 0:00:02]} Kf8 {[%emt 0:00:02]} 48. Bb3 {[%emt 0:00:25]} Re1+ {[%emt 0:00:01]} 49. Kb2 {[%emt 0:00:08]} Ref1 {[%emt 0:00:21]} 50. Qd7 {[%emt 0:00:40]} R1f2+ {[%emt 0:05:05]} 51. Ka3 {[%emt 0:00:01]} R2f3 {[%emt 0:00:00]} 52. Kb4 {[%emt 0:01:11]} R3f5 {[%emt 0:00:27]} 53. Bd5 {[%emt 0:00:31]} Rf2 {[%emt 0:00:44]} 54. Kb5 {[%emt 0:00:29]} Rb2+ {[%emt 0:00:04]} 55. Bb3 {[%emt 0:00:19]} Rbf2 {[%emt 0:00:02]} 56. Be6 {[%emt 0:01:33]} Rb2+ {[%emt 0:00:22]} 57. Ka6 {[%emt 0:01:42]} b5 {[%emt 0:01:37]} 58. Qd8+ {[%emt 0:01:02]} Kg7 {[%emt 0:00:03]} 59. Qg8+ {[%emt 0:01:45]} Kh6 {[%emt 0:00:01]} 60. axb5 {[%emt 0:00:09]} Rxa2+ {[%emt 0:00:49]} 61. Kb7 {[%emt 0:00:19]} Re2 {[%emt 0:00:42]} 62. Bd7 {[%emt 0:00:15]} Re7 {[%emt 0:01:41]} 63. Qg4 {[%emt 0:00:14]} Rg7 {[%emt 0:00:48]} 64. Qh3+ {[%emt 0:00:05]} Kg5 {[%emt 0:00:19]} 65. Qg3+ {[%emt 0:00:43]} Kh6 {[%emt 0:00:04]} 66. Qh4+ {[%emt 0:00:05]} Kg6 {[%emt 0:00:04]} 67. Kc7 {[%emt 0:00:14]} Re7 {[%emt 0:01:21]} 68. b6 {[%emt 0:00:35]} Rxd7+ {[%emt 0:00:03]} 69. Kxd7 {[%emt 0:00:06]} Rxb6 {[%emt 0:00:02]} 70. Qd4 {[%emt 0:00:48]} Rf6 {[%emt 0:00:39]} 71. Ke7 {[%emt 0:00:04]} Rf7+ {[%emt 0:00:21]} 72. Ke6 {[%emt 0:00:05]} Rf8 {[%emt 0:00:22]} 73. Qg4+ {[%emt 0:00:44]} Kh7 {[%emt 0:00:33]} 74. Ke7 {[%emt 0:00:34]} Rg8 {[%emt 0:00:43]} 75. Qh5+ {[%emt 0:01:46]} Kg7 {[%emt 0:00:02]} 76. Qd5 {[%emt 0:00:32]} Kh7 {[%emt 0:00:24]} 77. Kf7 {[%emt 0:00:24]} Rg7+ {[%emt 0:01:16]} 78. Kf8 {[%emt 0:00:01]} Kh6 {[%emt 0:00:57]} 79. Qh1+ {[%emt 0:00:01]} 1-0

[Event "80th ARM-ch 1st League 2019"]
[Site "Yerevan"]
[Date "2019.08.24"]
[Round "7.5"]
[White "Mikaelyan, Arman"]
[Black "Hayrapetyan, Hovik"]
[Result "1-0"]
[ECO "D90"]
[WhiteElo "2454"]
[BlackElo "2453"]
[Annotator "ChessBase"]
[PlyCount "87"]
[EventDate "2019.08.18"]
[EventType "tourn"]
[EventCountry "ARM"]
[SourceTitle "playchess.com"]
[Source "ChessBase"]
[SourceQuality "1"]
[TimeControl "40/5400+30:1800+30"]

1. d4 {[%emt 0:00:44]} Nf6 {[%emt 0:00:38]} 2. c4 {[%emt 0:00:16]} g6 {[%emt 0:01:51]} 3. Nc3 {[%emt 0:00:25]} d5 {[%emt 0:00:07]} 4. Nf3 {[%emt 0:00:38]} Bg7 {[%emt 0:00:16]} 5. h4 c6 {[%emt 0:01:49]} 6. cxd5 {[%emt 0:01:23]} cxd5 {[%emt 0:01:10]} 7. Bf4 {[%emt 0:00:18]} O-O {[%emt 0:00:58]} 8. e3 {[%emt 0:00:14]} Nc6 {[%emt 0:00:46]} 9. Ne5 {[%emt 0:02:11]} e6 {[%emt 0:03:18]} 10. Be2 {[%emt 0:02:39]} h6 {[%emt 0:09:32]} 11. Qb3 {[%emt 0:05:26]} Na5 {[%emt 0:07:25]} 12. Qa3 {[%emt 0:03:05]} Nd7 {[%emt 0:03:13]} 13. Nb5 {[%emt 0:10:16]} Nxe5 {[%emt 0:00:20]} 14. Bxe5 {[%emt 0:00:24]} Bxe5 {[%emt 0:00:12]} 15. dxe5 {[%emt 0:00:05]} Nc6 {[%emt 0:00:02]} 16. f4 {[%emt 0:10:45]} Kg7 {[%emt 0:14:13]} 17. O-O-O {[%emt 0:02:07]} Qa5 {[%emt 0:02:44]} 18. Qxa5 {[%emt 0:16:44]} Nxa5 {[%emt 0:00:09]} 19. b3 {[%emt 0:00:54]} b6 {[%emt 0:01:07]} 20. Kb2 {[%emt 0:03:13]} a6 {[%emt 0:06:54]} 21. Nd6 {[%emt 0:03:41]} Nb7 {[%emt 0:02:30]} 22. Rc1 {[%emt 0:09:08]} Nxd6 {[%emt 0:00:11]} 23. exd6 {[%emt 0:00:03]} Rd8 {[%emt 0:00:11]} 24. Rc6 {[%emt 0:00:25]} Rb8 {[%emt 0:00:04]} 25. Rhc1 {[%emt 0:05:05]} Bd7 {[%emt 0:03:10]} 26. Rc7 {[%emt 0:00:04]} b5 {[%emt 0:00:33]} 27. Kc3 {[%emt 0:06:56]} Rb6 {[%emt 0:01:27]} 28. Kd4 {[%emt 0:00:20]} Rxd6 {[%emt 0:00:06]} 29. Ra7 {[%emt 0:00:56]} Kf6 {[%emt 0:05:36]} 30. Rcc7 {[%emt 0:00:40]} Ke7 {[%emt 0:00:27]} 31. Bf3 {[%emt 0:05:06]} Rb8 {[%emt 0:04:08]} 32. Kc5 {[%emt 0:02:25]} f5 {[%emt 0:05:31]} 33. a3 {[%emt 0:02:40]} g5 {[%emt 0:04:48]} 34. hxg5 {[%emt 0:00:55]} hxg5 {[%emt 0:00:15]} 35. fxg5 {[%emt 0:01:17]} Rg8 {[%emt 0:00:12]} 36. Rab7 {[%emt 0:03:19]} Rxg5 {[%emt 0:01:49]} 37. Rb8 {[%emt 0:00:35]} d4 {[%emt 0:13:56]} 38. Re8+ {[%emt 0:01:04]} Kxe8 {[%emt 0:00:18]} 39. Kxd6 {[%emt 0:00:03]} e5 {[%emt 0:03:28]} 40. Rxd7 {[%emt 0:00:00]} e4 {[%emt 0:00:00]} 41. Re7+ {[%emt 0:05:19]} Kd8 {[%emt 0:02:39]} 42. exd4 {[%emt 0:00:55]} exf3 {[%emt 0:00:11]} 43. gxf3 {[%emt 0:00:05]} Rg2 {[%emt 0:02:28]} 44. Rf7 {[%emt 0:02:17]} 1-0

[Event "80th ARM-ch 1st League 2019"]
[Site "Yerevan"]
[Date "2019.08.24"]
[Round "7.6"]
[White "Gharibyan, Mamikon"]
[Black "Hoghmrtsyan, Artur"]
[Result "1/2-1/2"]
[ECO "D37"]
[WhiteElo "2365"]
[BlackElo "2317"]
[Annotator "NA"]
[PlyCount "59"]
[EventDate "2019.08.18"]
[EventType "tourn"]
[EventCountry "ARM"]
[SourceTitle "playchess.com"]
[Source "ChessBase"]
[SourceQuality "1"]
[TimeControl "40/5400+30:1800+30"]

1. d4 {[%emt 0:00:23]} d5 {[%emt 0:00:00]} 2. c4 {[%emt 0:00:17]} e6 {[%emt 0:00:00]} 3. Nc3 {[%emt 0:00:35]} Be7 {[%emt 0:00:00]} 4. Nf3 {[%emt 0:00:30]} Nf6 {[%emt 0:00:03]} 5. Bf4 {[%emt 0:00:16]} O-O {[%emt 0:00:09]} 6. e3 {[%emt 0:00:20]} Nbd7 {[%emt 0:00:15]} 7. Be2 dxc4 {[%emt 0:05:37]} 8. Bxc4 {[%emt 0:01:27]} c5 {[%emt 0:00:56]} 9. dxc5 {[%emt 0:08:32]} Nxc5 {[%emt 0:00:12]} 10. Qc2 {[%emt 0:06:25]} a6 {[%emt 0:04:54]} 11. a4 {[%emt 0:14:16]} Bd7 {[%emt 0:00:20]} 12. O-O {[%emt 0:07:47]} Qa5 {[%emt 0:02:11]} 13. b3 {[%emt 0:28:32]} Rfc8 {[%emt 0:02:09]} 14. Rfc1 {[%emt 0:02:19]} Be8 {[%emt 0:14:10]} 15. e4 {[%emt 0:11:20]} Bc6 {[%emt 0:17:25]} 16. e5 {[%emt 0:00:46]} Nh5 {[%emt 0:13:15]} 17. Bg5 {[%emt 0:05:57]} Qc7 {[%emt 0:03:27]} 18. Bxe7 {[%emt 0:00:04]} Qxe7 {[%emt 0:00:05]} 19. Nd4 {[%emt 0:01:23]} Qg5 {[%emt 0:03:53]} 20. Nxc6 {[%emt 0:00:01]} Rxc6 {[%emt 0:00:14]} 21. Re1 {[%emt 0:00:24]} Nf4 {[%emt 0:01:16]} 22. g3 {[%emt 0:00:44]} Ng6 {[%emt 0:00:56]} 23. Qc1 {[%emt 0:04:22]} Qxc1 {[%emt 0:10:25]} 24. Raxc1 {[%emt 0:00:04]} Rac8 {[%emt 0:00:08]} 25. Re3 {[%emt 0:00:35]} Nd7 {[%emt 0:03:25]} 26. f4 {[%emt 0:00:04]} Nb6 {[%emt 0:01:44]} 27. Ne4 {[%emt 0:04:04]} Nd5 {[%emt 0:08:09]} 28. Ree1 {[%emt 0:00:05]} b5 {[%emt 0:00:04]} 29. axb5 {[%emt 0:00:08]} axb5 {[%emt 0:00:05]} 30. Nd6 {[%emt 0:00:25]} 1/2-1/2

[Event "80th ARM-ch 1st League 2019"]
[Site "Yerevan"]
[Date "2019.08.24"]
[Round "7.7"]
[White "Gevorgyan, Albert"]
[Black "Harutjunyan, Gevorg"]
[Result "1-0"]
[ECO "E69"]
[WhiteElo "2175"]
[BlackElo "2455"]
[Annotator "ChessBase"]
[PlyCount "111"]
[EventDate "2019.08.18"]
[EventType "tourn"]
[EventCountry "ARM"]
[SourceTitle "playchess.com"]
[Source "ChessBase"]
[SourceQuality "1"]
[TimeControl "40/5400+30:1800+30"]

1. Nf3 {[%emt 0:00:00]} Nf6 {[%emt 0:00:00]} 2. c4 {[%emt 0:00:13]} d6 {[%emt 0:00:10]} 3. d4 {[%emt 0:00:23]} Nbd7 {[%emt 0:00:30]} 4. Nc3 {[%emt 0:00:29]} e5 {[%emt 0:00:29]} 5. g3 {[%emt 0:02:13]} g6 {[%emt 0:01:08]} 6. Bg2 {[%emt 0:00:10]} Bg7 7. O-O {[%emt 0:00:29]} O-O {[%emt 0:00:19]} 8. e4 {[%emt 0:00:41]} c6 {[%emt 0:00:27]} 9. h3 {[%emt 0:02:04]} exd4 {[%emt 0:00:32]} 10. Nxd4 {[%emt 0:00:07]} Qb6 {[%emt 0:01:42]} 11. Re1 {[%emt 0:02:58]} Ng4 {[%emt 0:03:53]} 12. Nce2 {[%emt 0:00:19]} Nge5 {[%emt 0:01:24]} 13. b3 {[%emt 0:05:09]} Nc5 {[%emt 0:03:20]} 14. Be3 {[%emt 0:00:43]} Re8 {[%emt 0:01:26]} 15. Qc2 {[%emt 0:07:27]} a5 {[%emt 0:04:23]} 16. Red1 {[%emt 0:06:06]} Qc7 {[%emt 0:07:50]} 17. Rab1 {[%emt 0:05:20]} Qe7 {[%emt 0:03:20]} 18. Nc3 {[%emt 0:06:43]} Ned7 {[%emt 0:06:47]} 19. Re1 {[%emt 0:12:21]} Nf6 {[%emt 0:05:39]} 20. Rbd1 {[%emt 0:01:57]} Qf8 {[%emt 0:06:04]} 21. f4 {[%emt 0:12:13]} h5 {[%emt 0:09:04]} 22. Bf2 {[%emt 0:03:46]} Nh7 {[%emt 0:04:35]} 23. Kh2 {[%emt 0:04:37]} Bh6 {[%emt 0:06:29]} 24. Nf3 {[%emt 0:03:49]} Bg7 {[%emt 0:09:58]} 25. Bd4 {[%emt 0:03:39]} Bxd4 {[%emt 0:05:29]} 26. Rxd4 {[%emt 0:00:37]} Nf6 {[%emt 0:01:18]} 27. Qd1 {[%emt 0:01:31]} Rb8 {[%emt 0:05:50]} 28. Ng5 {[%emt 0:01:57]} h4 {[%emt 0:01:36]} 29. g4 {[%emt 0:00:29]} Qg7 {[%emt 0:01:53]} 30. Qd2 {[%emt 0:03:55]} a4 {[%emt 0:07:07]} 31. Rxd6 {[%emt 0:06:26]} axb3 {[%emt 0:00:07]} 32. e5 {[%emt 0:00:21]} Nh7 {[%emt 0:00:58]} 33. Nxh7 {[%emt 0:00:28]} Kxh7 {[%emt 0:00:05]} 34. Qf2 {[%emt 0:00:08]} Nd7 {[%emt 0:01:51]} 35. Ne4 {[%emt 0:01:08]} Kg8 {[%emt 0:01:13]} 36. axb3 {[%emt 0:00:29]} Re6 {[%emt 0:00:31]} 37. Red1 {[%emt 0:00:55]} Rxd6 {[%emt 0:00:31]} 38. Rxd6 {[%emt 0:00:05]} g5 {[%emt 0:00:17]} 39. Nf6+ {[%emt 0:01:17]} Nxf6 {[%emt 0:00:09]} 40. exf6 {[%emt 0:00:00]} Qf8 {[%emt 0:00:00]} 41. Qd2 {[%emt 0:00:19]} Be6 {[%emt 0:00:27]} 42. f5 {[%emt 0:00:04]} Bd5 {[%emt 0:00:29]} 43. Qxg5+ {[%emt 0:01:05]} Kh7 {[%emt 0:00:04]} 44. Qxh4+ {[%emt 0:01:29]} Kg8 {[%emt 0:00:05]} 45. Qg5+ {[%emt 0:02:41]} Kh7 {[%emt 0:00:16]} 46. Rd7 {[%emt 0:00:32]} Bxg2 {[%emt 0:00:06]} 47. Kxg2 {[%emt 0:01:25]} Kh8 {[%emt 0:00:27]} 48. h4 {[%emt 0:01:46]} b5 {[%emt 0:00:46]} 49. cxb5 {[%emt 0:00:37]} cxb5 {[%emt 0:00:22]} 50. h5 {[%emt 0:00:20]} b4 {[%emt 0:00:24]} 51. h6 {[%emt 0:00:32]} Rc8 {[%emt 0:01:23]} 52. Qg7+ {[%emt 0:00:29]} Qxg7 {[%emt 0:00:06]} 53. fxg7+ {[%emt 0:00:10]} Kg8 {[%emt 0:00:05]} 54. g5 {[%emt 0:00:18]} Re8 {[%emt 0:00:13]} 55. g6 {[%emt 0:00:11]} fxg6 {[%emt 0:00:25]} 56. f6 {[%emt 0:00:08]} 1-0

[Event "80th ARM-ch 1st League 2019"]
[Site "Yerevan"]
[Date "2019.08.26"]
[Round "8.1"]
[White "Chaqryan, Erik"]
[Black "Gevorgyan, Albert"]
[Result "1-0"]
[ECO "C44"]
[WhiteElo "2105"]
[BlackElo "2175"]
[Annotator "NA"]
[PlyCount "57"]
[EventDate "2019.08.18"]
[EventType "tourn"]
[EventCountry "ARM"]
[SourceTitle "playchess.com"]
[Source "ChessBase"]
[SourceQuality "1"]
[TimeControl "40/5400+30:1800+30"]

1. e4 {[%emt 0:00:02]} e5 {[%emt 0:00:16]} 2. Nf3 {[%emt 0:00:15]} Nc6 {[%emt 0:00:11]} 3. d4 {[%emt 0:01:38]} exd4 {[%emt 0:00:47]} 4. Nxd4 {[%emt 0:00:06]} Qf6 {[%emt 0:00:10]} 5. Be3 {[%emt 0:01:28]} Bc5 {[%emt 0:00:48]} 6. c3 {[%emt 0:00:26]} Nge7 {[%emt 0:00:47]} 7. Bc4 {[%emt 0:01:42]} b6 {[%emt 0:01:04]} 8. O-O {[%emt 0:01:55]} O-O {[%emt 0:00:14]} 9. f4 {[%emt 0:20:19]} d5 {[%emt 0:00:29]} 10. e5 {[%emt 0:02:03]} Qh6 {[%emt 0:00:23]} 11. Be2 {[%emt 0:22:53]} Nxe5 {[%emt 0:00:32]} 12. Qd2 {[%emt 0:00:19]} N5c6 {[%emt 0:13:01]} 13. f5 {[%emt 0:00:31]} Qf6 {[%emt 0:00:33]} 14. g4 {[%emt 0:02:52]} a5 {[%emt 0:20:12]} 15. Na3 {[%emt 0:03:37]} Nxd4 {[%emt 0:03:50]} 16. cxd4 {[%emt 0:00:12]} Bb4 {[%emt 0:00:04]} 17. Qc1 {[%emt 0:04:07]} h6 {[%emt 0:21:39]} 18. Nc2 {[%emt 0:07:33]} Nc6 {[%emt 0:02:26]} 19. a3 {[%emt 0:06:39]} Be7 {[%emt 0:03:23]} 20. Qd2 {[%emt 0:01:50]} Ba6 {[%emt 0:10:14]} 21. Bxa6 {[%emt 0:00:18]} Rxa6 {[%emt 0:00:02]} 22. Rf3 {[%emt 0:02:26]} b5 {[%emt 0:06:49]} 23. Raf1 {[%emt 0:02:34]} Qd6 {[%emt 0:06:55]} 24. g5 {[%emt 0:02:12]} hxg5 {[%emt 0:01:55]} 25. Bxg5 {[%emt 0:00:02]} Bxg5 {[%emt 0:00:15]} 26. Qxg5 {[%emt 0:00:01]} Qf6 {[%emt 0:00:06]} 27. Qxf6 {[%emt 0:00:14]} gxf6 {[%emt 0:00:41]} 28. Rg3+ {[%emt 0:00:26]} Kh7 {[%emt 0:00:16]} 29. Rf4 {[%emt 0:00:04]} 1-0

[Event "80th ARM-ch 1st League 2019"]
[Site "Yerevan"]
[Date "2019.08.26"]
[Round "8.2"]
[White "Davtyan, Artur"]
[Black "Khojayan, Vardan"]
[Result "1/2-1/2"]
[ECO "A61"]
[WhiteElo "2440"]
[BlackElo "2236"]
[Annotator "NA"]
[PlyCount "140"]
[EventDate "2019.08.18"]
[EventType "tourn"]
[EventCountry "ARM"]
[SourceTitle "playchess.com"]
[Source "ChessBase"]
[SourceQuality "1"]
[TimeControl "40/5400+30:1800+30"]

1. d4 {[%emt 0:03:26]} Nf6 {[%emt 0:00:00]} 2. c4 {[%emt 0:00:03]} e6 {[%emt 0:00:00]} 3. Nf3 {[%emt 0:00:06]} c5 {[%emt 0:00:00]} 4. d5 {[%emt 0:00:04]} exd5 {[%emt 0:00:04]} 5. cxd5 {[%emt 0:00:03]} d6 {[%emt 0:00:06]} 6. Nc3 {[%emt 0:00:03]} g6 {[%emt 0:00:18]} 7. e4 {[%emt 0:00:07]} a6 {[%emt 0:00:20]} 8. a4 {[%emt 0:00:15]} Bg4 {[%emt 0:00:06]} 9. Be2 {[%emt 0:01:21]} Bxf3 {[%emt 0:00:07]} 10. Bxf3 {[%emt 0:00:03]} Bg7 {[%emt 0:00:07]} 11. O-O {[%emt 0:07:49]} O-O {[%emt 0:00:18]} 12. Bf4 {[%emt 0:06:51]} Ne8 {[%emt 0:00:19]} 13. Qc2 {[%emt 0:07:59] A75: Modern Benoni: Classical: 9...a6 10 a4 Bg4} Nd7 {[%emt 0:01:05] [#]} 14. Rae1 $146 {[%emt 0:04:48]} ({Predecessor:} 14. Be2 Rb8 15. Rab1 Qe7 16. Rfc1 Bd4 17. Bg3 Ng7 18. Re1 Rbe8 19. Qd2 Nf6 20. Qg5 Qd7 {1-0 (51) Kuzubov,Y (2545)-Jobava,B (2658) Dresden 2007}) 14... Qe7 {[%emt 0:02:14]} 15. Bg3 {[%emt 0:04:45]} Nc7 {[%emt 0:07:10]} 16. Bg4 {[%emt 0:01:19]} Ne5 {[%emt 0:14:43]} 17. Be2 {[%emt 0:00:18]} b5 {[%emt 0:03:58]} 18. axb5 {[%emt 0:19:24]} Nxb5 {[%emt 0:02:36]} 19. Bxb5 {[%emt 0:00:06]} axb5 {[%emt 0:00:08]} 20. Nxb5 {[%emt 0:03:08]} Rfb8 {[%emt 0:01:13]} 21. Qe2 {[%emt 0:00:04]} Ra2 $14 {[%emt 0:14:13]} (21... Qd7 $11 22. Nc3 Qa7) 22. Rb1 {[%emt 0:01:41]} Ra4 {[%emt 0:02:01]} 23. b4 {[%emt 0:17:51]} cxb4 {[%emt 0:01:06]} 24. Nd4 {[%emt 0:01:45]} Rba8 {[%emt 0:00:05]} 25. h3 {[%emt 0:09:19]} Qa7 {[%emt 0:13:20]} 26. Rfd1 {[%emt 0:00:02]} Ra2 {[%emt 0:02:47]} 27. Qf1 {[%emt 0:01:05]} Qc5 {[%emt 0:03:02]} 28. Qb5 {[%emt 0:03:28]} Nf3+ {[%emt 0:00:56]} 29. gxf3 {[%emt 0:00:19]} Bxd4 {[%emt 0:00:03]} 30. Qf1 {[%emt 0:01:10]} Rc2 {[%emt 0:00:49]} 31. Qg2 {[%emt 0:04:04]} Raa2 {[%emt 0:00:25]} 32. Rf1 {[%emt 0:00:01]} Qb6 {[%emt 0:03:18]} 33. f4 {[%emt 0:01:03]} Re2 {[%emt 0:07:37]} 34. Qf3 {[%emt 0:00:02]} Qc5 {[%emt 0:00:49]} 35. Rb3 {[%emt 0:03:01]} Qc4 {[%emt 0:01:10]} 36. e5 {[%emt 0:00:26]} dxe5 {[%emt 0:04:17]} 37. fxe5 {[%emt 0:00:01]} Bxe5 {[%emt 0:02:08]} 38. d6 {[%emt 0:00:34]} Rad2 {[%emt 0:02:09]} 39. d7 {[%emt 0:01:05]} Bxg3 {[%emt 0:03:53]} 40. Qxg3 {[%emt 0:00:00]} Rxd7 {[%emt 0:00:00]} 41. Qb8+ {[%emt 0:00:16]} Kg7 {[%emt 0:03:49]} 42. Qxb4 {[%emt 0:00:37]} Qe6 {[%emt 0:01:11]} 43. Qc3+ {[%emt 0:00:22]} f6 {[%emt 0:00:52]} 44. Rb4 {[%emt 0:02:02]} Qf5 {[%emt 0:04:11]} 45. Qg3 {[%emt 0:01:19]} Red2 {[%emt 0:01:00]} 46. Rf4 {[%emt 0:01:12]} Qe5 {[%emt 0:01:02]} 47. Rf3 {[%emt 0:00:27]} Qd5 {[%emt 0:03:49]} 48. Qf4 {[%emt 0:00:30]} Qc6 {[%emt 0:01:10]} 49. Re3 {[%emt 0:01:22]} R2d5 {[%emt 0:00:19]} 50. Rfe1 {[%emt 0:00:41]} Rg5+ {[%emt 0:04:08]} 51. Rg3 {[%emt 0:00:02]} Rxg3+ {[%emt 0:00:18]} 52. fxg3 {[%emt 0:05:04]} Qc5+ {[%emt 0:00:13]} 53. Qf2 {[%emt 0:00:35]} Qg5 {[%emt 0:00:20]} 54. Qe3 {[%emt 0:00:54]} Qf5 {[%emt 0:01:09]} 55. Qe6 {[%emt 0:00:59]} Qxe6 {[%emt 0:01:32]} 56. Rxe6 {[%emt 0:00:04]} Rd3 {[%emt 0:00:05]} 57. Kg2 {[%emt 0:00:18]} Kf7 {[%emt 0:00:05]} 58. Ra6 {[%emt 0:00:05]} h5 {[%emt 0:00:06]} 59. h4 {[%emt 0:01:08]} Ke7 {[%emt 0:00:11]} 60. Kf2 {[%emt 0:00:30]} Rd6 {[%emt 0:00:09]} 61. Ra5 {[%emt 0:00:31]} Ke6 {[%emt 0:00:09]} 62. Kf3 {[%emt 0:00:01]} Rd5 {[%emt 0:00:36]} 63. Ra4 {[%emt 0:00:04]} Rb5 {[%emt 0:00:43]} 64. Re4+ {[%emt 0:00:45]} Kd5 {[%emt 0:00:12]} 65. Re8 {[%emt 0:01:00]} Rb3+ {[%emt 0:00:26]} 66. Kf4 {[%emt 0:00:08]} Rb4+ {[%emt 0:00:03]} 67. Kf3 {[%emt 0:00:05]} Rb6 {[%emt 0:00:05]} 68. Rg8 {[%emt 0:00:24]} Rb3+ {[%emt 0:00:58]} 69. Kg2 {[%emt 0:00:11]} f5 {[%emt 0:02:04]} 70. Rxg6 {[%emt 0:00:15]} f4 {[%emt 0:00:20]} 1/2-1/2

[Event "80th ARM-ch 1st League 2019"]
[Site "Yerevan"]
[Date "2019.08.26"]
[Round "8.3"]
[White "Gharibyan, Mamikon"]
[Black "Mikaelyan, Arman"]
[Result "1-0"]
[ECO "A78"]
[WhiteElo "2365"]
[BlackElo "2454"]
[Annotator "ChessBase"]
[PlyCount "75"]
[EventDate "2019.08.18"]
[EventType "tourn"]
[EventCountry "ARM"]
[SourceTitle "playchess.com"]
[Source "ChessBase"]
[SourceQuality "1"]
[TimeControl "40/5400+30:1800+30"]

1. d4 {[%emt 0:00:00]} Nf6 {[%emt 0:00:00]} 2. c4 {[%emt 0:00:36]} e6 {[%emt 0:00:07]} 3. Nf3 {[%emt 0:01:11]} c5 {[%emt 0:00:29]} 4. d5 {[%emt 0:01:17]} exd5 {[%emt 0:00:17]} 5. cxd5 {[%emt 0:00:06]} d6 {[%emt 0:00:05]} 6. Nc3 {[%emt 0:00:39]} g6 {[%emt 0:00:09]} 7. Nd2 {[%emt 0:02:01]} Bg7 {[%emt 0:01:25]} 8. e4 {[%emt 0:01:07]} O-O {[%emt 0:00:18]} 9. Be2 {[%emt 0:00:05]} Na6 {[%emt 0:02:33]} 10. O-O {[%emt 0:00:48]} Re8 {[%emt 0:04:06]} 11. Re1 {[%emt 0:19:27]} Rb8 {[%emt 0:04:14]} 12. a4 {[%emt 0:10:41]} Nb4 {[%emt 0:13:14]} 13. h3 {[%emt 0:14:09]} b6 {[%emt 0:10:09]} 14. Bf1 {[%emt 0:06:15]} Nh5 {[%emt 0:07:55]} 15. Nc4 {[%emt 0:02:18]} Ba6 {[%emt 0:13:45]} 16. Nb5 {[%emt 0:02:46]} Bxb5 {[%emt 0:01:14]} 17. axb5 {[%emt 0:00:05]} Rb7 {[%emt 0:00:11]} 18. Bd2 {[%emt 0:07:40]} Rbe7 {[%emt 0:03:06]} 19. g4 {[%emt 0:02:33]} Nf6 {[%emt 0:04:25]} 20. f3 {[%emt 0:00:05]} h5 {[%emt 0:01:48]} 21. Qb3 {[%emt 0:11:10]} hxg4 {[%emt 0:14:31]} 22. hxg4 {[%emt 0:00:09]} Nh7 {[%emt 0:00:32]} 23. Rad1 {[%emt 0:11:15]} f5 {[%emt 0:05:38]} 24. Bf4 {[%emt 0:03:47]} fxe4 {[%emt 0:01:11]} 25. Nxd6 {[%emt 0:00:27]} Rf8 {[%emt 0:00:46]} 26. Nxe4 {[%emt 0:00:33]} Rxf4 {[%emt 0:02:16]} 27. d6+ {[%emt 0:00:03]} Ref7 {[%emt 0:00:07]} 28. Bc4 {[%emt 0:00:15]} Kf8 {[%emt 0:01:48]} 29. Bxf7 {[%emt 0:00:04]} Rxf7 {[%emt 0:00:11]} 30. Kg2 {[%emt 0:01:32]} Qd7 {[%emt 0:01:07]} 31. Rh1 {[%emt 0:00:40]} Be5 {[%emt 0:00:37]} 32. Qe3 {[%emt 0:00:45]} Nc2 {[%emt 0:01:44]} 33. Qh6+ {[%emt 0:00:37]} Bg7 {[%emt 0:01:33]} 34. Qd2 {[%emt 0:00:34]} Nd4 {[%emt 0:00:03]} 35. Rxh7 {[%emt 0:00:47]} Nxf3 {[%emt 0:00:07]} 36. Qd5 {[%emt 0:00:42]} Qxg4+ {[%emt 0:00:53]} 37. Ng3 {[%emt 0:00:02]} Nd4 {[%emt 0:02:35]} 38. Qa8+ {[%emt 0:00:21]} 1-0